bitfinex-derivatives/quotes_SOLF0:USTF0_20250523
["timestamp","ask_amount","ask_price","bid_price","bid_amount"]
[1747989977285,0.041097,186.12,186.02,565.8]
[1747989977286,119.481097,186.12,186.03,119.44]
[1747989977592,0.04024829,186.09,186.0,119.44]
[1747989977794,0.03833073,186.06,186.05,5.3749]
[1747989977993,0.03771865,186.07,186.0,119.44]
[1747989978294,0.03771865,186.07,186.05,5.3746]
[1747989978595,0.03771865,186.07,186.0,119.44]
[1747989978596,0.03771865,186.07,186.0,181.44]
[1747989978794,0.03771865,186.07,186.05,5.3746]
[1747989978995,0.03771865,186.07,186.0,119.44]
[1747989979993,0.03771865,186.07,186.06,5.3746]
[1747989984094,0.03771865,186.07,186.0,119.44]
[1747989985902,0.03771865,186.07,186.02,5.3757]
[1747989986097,0.03771865,186.07,186.0,119.44]
[1747989986297,0.03771865,186.07,185.93,463.88]
[1747989986492,0.0348107,186.02,186.01,5.3758]
[1747989986693,0.03471098,186.03,185.94,119.86]
[1747989987201,0.03471098,186.03,186.02,5.3757]
[1747989987595,0.03471098,186.03,185.94,119.86]
[1747989987790,1.818,186.17,185.94,119.86]
[1747989988093,1.818,186.17,186.09,5.3735]
[1747989988295,5.3722,186.15,186.09,5.3735]
[1747989988703,1.818,186.17,186.03,221.98]
[1747989988900,0.03509367,186.12,186.08,0.03979294]
[1747989989299,5.40819367,186.12,186.08,0.03979294]
[1747989989500,0.03509367,186.12,186.08,0.03979294]
[1747989991005,0.03509367,186.12,186.09,5.3737]
[1747989991206,0.03509367,186.12,186.08,0.03979294]
[1747989991606,0.03509367,186.12,186.09,5.3735]
[1747989992106,0.03509367,186.12,186.1,5.3734]
[1747989992307,0.03509367,186.12,186.08,0.03979294]
[1747989992509,9.367e-05,186.12,186.08,119.93979294]
[1747989992709,9.367e-05,186.12,186.11,5.3731]
[1747989995409,9.367e-05,186.12,186.08,119.93979294]
[1747989995813,9.367e-05,186.12,186.11,5.3731]
[1747989996206,9.367e-05,186.12,186.08,0.03979294]
[1747989996606,5.3732,186.11,186.08,0.03979294]
[1747989997210,5.3735,186.1,186.08,0.03979294]
[1747989997408,9.367e-05,186.12,186.08,0.03979294]
[1747989997607,5.3733,186.11,186.08,0.03979294]
[1747989998706,5.3733,186.11,186.08,5.41359294]
[1747989998914,9.367e-05,186.12,186.08,0.03979294]
[1747989999713,9.367e-05,186.12,186.08,5.41359294]
[1747990000112,9.367e-05,186.12,186.08,0.03979294]
[1747990001013,9.367e-05,186.12,186.11,5.3731]
[1747990002717,9.367e-05,186.12,186.11,107.4731]
[1747990003212,9.367e-05,186.12,186.11,112.8531]
[1747990004113,119.88,186.29,186.24,5.3691]
[1747990004419,119.88,186.29,186.2,221.96]
[1747990004620,119.88,186.29,186.25,5.369]
[1747990005104,119.91499941,186.29,186.25,5.41014275]
[1747990005511,119.91499941,186.29,186.25,0.04114275]
[1747990006523,119.91499941,186.29,186.15,67.3719]
[1747990006818,119.88,186.29,186.15,119.86]
[1747990007006,5.3714,186.18,186.15,125.232]
[1747990007209,119.86,186.24,186.15,125.232]
[1747990007414,119.86,186.24,186.15,119.86]
[1747990007621,0.03863268,186.21,186.18,0.03905968]
[1747990010022,5.3682,186.28,186.18,0.03905968]
[1747990010519,5.3685,186.27,186.23,5.3695]
[1747990010722,119.24,186.29,186.2,119.24]
[1747990011115,0.04105377,186.26,186.23,0.03731737]
[1747990011314,5.3694,186.24,186.23,0.03731737]
[1747990011616,0.04105377,186.26,186.23,0.03731737]
[1747990012015,0.04105377,186.26,186.16,119.24]
[1747990012321,5.37,186.22,186.18,5.3709]
[1747990012520,119.24,186.29,186.16,119.24]
[1747990012923,5.3697,186.24,186.2,5.3705]
[1747990013122,0.04038632,186.24,186.21,0.03500578]
[1747990013518,5.3699,186.23,186.21,0.03500578]
[1747990013822,119.22,186.23,186.13,3.54260351]
[1747990014122,119.22,186.23,186.12,224.80260351]
[1747990014123,121.12,186.23,186.12,224.80260351]
[1747990014620,0.03671495,186.19,186.12,224.80260351]
[1747990014922,119.22,186.32,186.12,224.80260351]
[1747990015124,5.3685,186.28,186.23,5.3696]
[1747990015419,119.22,186.32,186.18,119.22]
[1747990015823,0.04055149,186.27,186.23,0.04053548]
[1747990016225,5.40935149,186.27,186.23,0.04053548]
[1747990016424,0.04055149,186.27,186.23,0.04053548]
[1747990016725,119.26055149,186.27,186.23,0.04053548]
[1747990017222,5.3694,186.24,186.23,0.04053548]
[1747990017719,119.26055149,186.27,186.15,3.54260351]
[1747990017922,119.22,186.27,186.15,224.78260351]
[1747990018123,119.2,186.29,186.15,224.78260351]
[1747990018826,0.0386106,186.24,186.22,5.3698]
[1747990019028,0.0386106,186.24,186.15,224.78260351]
[1747990019529,0.0386106,186.24,186.23,5.3697]
[1747990021429,1.7991,186.33,186.22,0.038517]
[1747990022330,0.03905649,186.29,186.22,0.038517]
[1747990023331,0.03905649,186.29,186.28,5.3682]
[1747990025630,5.649e-05,186.29,186.28,5.3682]
[1747990026531,7.1579,186.43,186.28,5.36]
[1747990026737,8.9874,186.43,186.27,464.3024]
[1747990027338,3.6234,186.43,186.27,464.3024]
[1747990027536,0.03703099,186.37,186.33,0.03433043]
[1747990027835,0.03703099,186.37,186.36,5.3659]
[1747990029233,0.03703099,186.37,186.35,102.0]
[1747990030124,0.03703099,186.37,186.33,0.03433043]
[1747990030431,5.40273099,186.37,186.33,5.40103043]
[1747990030635,0.03703099,186.37,186.33,0.03433043]
[1747990031837,0.03703099,186.37,186.36,5.3659]
[1747990032233,0.03703099,186.37,186.33,0.03433043]
[1747990032443,0.03703099,186.37,186.36,5.3659]
[1747990032937,0.03703099,186.37,186.35,5.366]
[1747990033336,0.03703099,186.37,186.33,0.03433043]
[1747990033635,119.12,186.47,186.35,119.12]
[1747990034435,0.03902023,186.43,186.39,0.03614624]
[1747990034940,0.03902023,186.43,186.4,5.3646]
[1747990035138,0.03902023,186.43,186.39,0.03614624]
[1747990035336,0.03902023,186.43,186.33,119.12]
[1747990035530,119.1,186.42,186.34,5.3665]
[1747990035731,5.3651,186.39,186.33,119.12]
[1747990036029,3.7834,186.41,186.33,119.12]
[1747990036531,0.03853593,186.39,186.35,0.03773304]
[1747990037038,0.03853593,186.39,186.37,5.3654]
[1747990037643,0.03853593,186.39,186.38,5.3654]
[1747990037937,0.03853593,186.39,186.35,0.03773304]
[1747990039035,5.3654,186.38,186.35,0.03773304]
[1747990039237,0.03853593,186.39,186.35,0.03773304]
[1747990039640,5.40383593,186.39,186.35,5.40363304]
[1747990040042,5.40383593,186.39,186.35,0.03773304]
[1747990040345,5.40383593,186.39,186.36,5.3657]
[1747990040536,0.03853593,186.39,186.36,5.3657]
[1747990041344,0.03853593,186.39,186.37,5.3654]
[1747990041937,0.03853593,186.39,186.35,0.03773304]
[1747990042142,119.78,186.38,186.25,3.54260351]
[1747990043046,0.03966808,186.33,186.25,3.54260351]
[1747990043249,0.03966808,186.33,186.27,0.03518861]
[1747990044239,0.03966808,186.33,186.3,5.3675]
[1747990044639,0.03966808,186.33,186.32,5.3671]
[1747990047446,0.03966808,186.33,186.27,0.03518861]
[1747990047654,0.03966808,186.33,186.22,119.8]
[1747990047843,119.8,186.32,186.22,119.8]
[1747990048146,123.5054,186.31,186.26,5.3686]
[1747990048649,0.03839287,186.3,186.26,5.3686]
[1747990048949,0.03839287,186.3,186.27,5.3685]
[1747990049246,0.03839287,186.3,186.22,119.8]
[1747990049852,0.03839287,186.3,186.2,3.54260351]
[1747990050158,0.03839287,186.3,186.23,5.3695]
[1747990050459,0.03839287,186.3,186.2,3.54260351]
[1747990051158,5.3683,186.28,186.2,3.54260351]
[1747990051347,0.04000473,186.26,186.2,3.54260351]
[1747990051654,0.04000473,186.26,186.24,5.3692]
[1747990052054,0.04000473,186.26,186.18,685.3]
[1747990052260,5.3699,186.23,186.18,119.8]
[1747990052460,5.3699,186.23,186.14,123.36260351]
[1747990052761,0.04058653,186.2,186.14,123.36260351]
[1747990053061,0.04058653,186.2,186.19,5.3708]
[1747990053556,0.04058653,186.2,186.17,5.3712]
[1747990054559,0.04058653,186.2,186.14,123.36260351]
[1747990055059,0.04058653,186.2,186.14,119.82]
[1747990055760,0.04058653,186.2,186.19,5.3708]
[1747990056157,8.653e-05,186.2,186.19,5.3708]
[1747990056864,8.653e-05,186.2,186.18,5.40817049]
[1747990057065,8.653e-05,186.2,186.18,0.03717049]
[1747990058466,8.653e-05,186.2,186.18,5.40817049]
[1747990059064,8.653e-05,186.2,186.19,5.3708]
[1747990060859,8.653e-05,186.2,186.18,0.03717049]
[1747990061266,5.37078653,186.2,186.18,0.03717049]
[1747990061465,1.8393,186.19,186.1,221.88]
[1747990061861,8.653e-05,186.2,186.19,5.3708]
[1747990062468,8.653e-05,186.2,186.13,102.02]
[1747990062971,8.653e-05,186.2,186.17,5.3712]
[1747990063169,8.653e-05,186.2,186.13,102.02]
[1747990063469,8.653e-05,186.2,186.19,5.3708]
[1747990063971,8.653e-05,186.2,186.13,102.02]
[1747990064172,8.653e-05,186.2,186.18,5.3709]
[1747990064572,8.653e-05,186.2,186.13,102.02]
[1747990064773,8.653e-05,186.2,186.17,5.3712]
[1747990065176,8.653e-05,186.2,186.13,102.02]
[1747990065377,5.37078653,186.2,186.13,102.02]
[1747990066075,8.653e-05,186.2,186.13,102.02]
[1747990067077,8.653e-05,186.2,186.17,5.3712]
[1747990068078,5.37068653,186.2,186.17,5.3712]
[1747990068776,5.3709,186.19,186.12,102.02]
[1747990068979,8.653e-05,186.2,186.1,221.9]
[1747990070381,5.37068653,186.2,186.16,5.3716]
[1747990071180,8.653e-05,186.2,186.16,5.3716]
[1747990071380,8.653e-05,186.2,186.17,5.3713]
[1747990072877,5.37068653,186.2,186.16,5.3716]
[1747990073282,5.37068653,186.2,186.13,102.04]
[1747990073581,8.653e-05,186.2,186.17,5.3714]
[1747990074277,8.653e-05,186.2,186.13,102.04]
[1747990074978,8.653e-05,186.2,186.19,5.3708]
[1747990075795,8.653e-05,186.2,186.19,10.7508]
[1747990076085,8.653e-05,186.2,186.19,5.3708]
[1747990076877,8.653e-05,186.2,186.19,10.7508]
[1747990077587,8.653e-05,186.2,186.19,72.7508]
[1747990081091,8.653e-05,186.2,186.19,76.29340351]
[1747990081291,8.653e-05,186.2,186.19,70.91340351]
[1747990082483,8.653e-05,186.2,186.19,172.93340351]
[1747990082887,8.653e-05,186.2,186.19,110.93340351]
[1747990083088,8.653e-05,186.2,186.19,8.91340351]
[1747990083494,8.653e-05,186.2,186.19,5.3708]
[1747990084191,8.653e-05,186.2,186.18,8.91370351]
[1747990084588,8.653e-05,186.2,186.18,3.54260351]
[1747990085695,8.653e-05,186.2,186.19,5.3708]
[1747990085991,8.653e-05,186.2,186.14,102.0]
[1747990087201,8.653e-05,186.2,186.19,5.3708]
[1747990094695,581.7,186.36,186.17,117.82]
[1747990094996,5.8326,186.35,186.25,5.3689]
[1747990095199,5.3674,186.31,186.17,117.82]
[1747990095394,123.1874,186.31,186.17,117.82]
[1747990095596,0.03920992,186.26,186.17,117.82]
[1747990096298,0.03920992,186.26,186.25,5.3691]
[1747990099099,9.92e-06,186.26,186.25,5.3691]
[1747990107208,9.92e-06,186.26,186.24,5.40880349]
[1747990107404,9.92e-06,186.26,186.19,3.54260351]
[1747990107799,5.3694,186.24,186.21,5.3701]
[1747990108908,5.3694,186.24,186.19,3.54260351]
[1747990108909,5.3698,186.23,186.19,8.91320351]
[1747990109209,116.38,186.24,186.19,3.54260351]
[1747990109406,116.38,186.24,186.14,119.92260351]
[1747990109601,0.03783634,186.21,186.18,5.371]
[1747990110020,0.03783634,186.21,186.14,119.92260351]
[1747990110204,5.371,186.19,186.14,119.92260351]
[1747990110405,0.03783634,186.21,186.14,3.54260351]
[1747990110909,0.03783634,186.21,186.16,5.3717]
[1747990111109,0.03783634,186.21,186.14,3.54260351]
[1747990111910,5.3706,186.2,186.17,5.3713]
[1747990112405,0.03783634,186.21,186.14,8.91490351]
[1747990112612,0.03783634,186.21,186.1,119.92260351]
[1747990113110,5.3709,186.19,186.1,119.92260351]
[1747990113311,0.0371529,186.16,186.1,119.92260351]
[1747990114811,0.0371529,186.16,186.15,5.372]
[1747990115914,0.0371529,186.16,186.14,5.3723]
[1747990116115,0.0371529,186.16,186.1,116.38]
[1747990116511,0.0371529,186.16,186.15,5.372]
[1747990117308,0.0371529,186.16,186.1,116.38]
[1747990117811,0.0371529,186.16,186.13,5.3723]
[1747990118003,0.0371529,186.16,186.1,116.38]
[1747990118916,0.0371529,186.16,186.15,5.372]
[1747990122616,5.29e-05,186.16,186.15,5.372]
[1747990122819,5.29e-05,186.16,186.15,121.792]
[1747990126421,5.29e-05,186.16,186.15,5.372]
[1747990128022,5.29e-05,186.16,186.15,10.752]
[1747990129120,5.29e-05,186.16,186.15,15.47570033]
[1747990130627,116.42,186.33,186.2,10.741]
[1747990130816,6.54428482,186.4,186.21,220.3819]
[1747990131121,1.8824,186.39,186.34,5.3662]
[1747990131621,0.03642974,186.38,186.35,0.03438987]
[1747990131818,2.974e-05,186.38,186.35,115.49438987]
[1747990132324,2.974e-05,186.38,186.37,5.3656]
[1747990137726,2.974e-05,186.38,186.37,10.7256]
[1747990139324,2.974e-05,186.38,186.37,222.7256]
[1747990144419,2.974e-05,186.38,186.35,0.03438987]
[1747990145116,2.974e-05,186.38,186.37,5.3656]
[1747990145314,2.974e-05,186.38,186.35,0.03438987]
[1747990145529,2.974e-05,186.38,186.37,5.3656]
[1747990153133,2.974e-05,186.38,186.36,115.36]
[1747990154334,2.974e-05,186.38,186.37,5.3656]
[1747990159136,2.974e-05,186.38,186.37,2.391]
[1747990159345,2.974e-05,186.38,186.35,0.03438987]
[1747990159842,5.36002974,186.38,186.26,3.5959956]
[1747990160136,1.834,186.37,186.26,3.5959956]
[1747990160341,117.194,186.37,186.32,5.3669]
[1747990160540,117.194,186.37,186.32,2.3914]
[1747990160744,5.3664,186.35,186.31,5.3673]
[1747990161042,0.03737772,186.36,186.25,115.36]
[1747990161241,5.3678,186.3,186.25,115.36]
[1747990161448,117.194,186.37,186.25,115.36]
[1747990161647,1.8687,186.29,186.22,3.5959956]
[1747990162148,8.47e-05,186.27,186.22,3.5959956]
[1747990162342,5.3665,186.34,186.29,5.3677]
[1747990162549,7.2352,186.34,186.22,3.5959956]
[1747990162750,1.8687,186.34,186.22,62.0]
[1747990162952,1.8687,186.34,186.3,5.3674]
[1747990163249,1.9054265,186.34,186.3,5.40416825]
[1747990163547,7.2720265,186.34,186.3,5.40416825]
[1747990163953,1.9054265,186.34,186.3,5.40416825]
[1747990164153,1.9054265,186.34,186.31,5.3673]
[1747990164754,1.9054265,186.34,186.32,5.367]
[1747990164954,1.9054265,186.34,186.3,0.03676825]
[1747990166760,1.9054265,186.34,186.33,5.3668]
[1747990169664,0.0367265,186.34,186.33,5.3668]
[1747990171460,2.65e-05,186.34,186.33,5.3668]
[1747990176473,2.65e-05,186.34,186.3,0.03676825]
[1747990177473,2.65e-05,186.34,186.33,5.3668]
[1747990182481,2.65e-05,186.34,186.3,0.03676825]
[1747990184581,2.65e-05,186.34,186.33,5.3668]
[1747990192089,2.65e-05,186.34,186.33,67.3668]
[1747990195593,2.65e-05,186.34,186.33,72.09050033]
[1747990196494,2.65e-05,186.34,186.33,10.09050033]
[1747990196884,2.65e-05,186.34,186.33,112.03050033]
[1747990199989,2.65e-05,186.34,186.33,107.3068]
[1747990203793,2.65e-05,186.34,186.33,110.90257891]
[1747990206598,2.65e-05,186.34,186.33,107.3068]
[1747990207290,1002.48,186.57,186.44,5.3637]
[1747990207495,1002.48,186.57,186.36,10.7314]
[1747990207496,115.2,186.58,186.43,101.92]
[1747990207695,119.113,186.58,186.44,115.2]
[1747990208197,5.3599,186.57,186.52,5.3612]
[1747990208390,0.0352567,186.56,186.53,0.03761511]
[1747990209298,5.3606,186.55,186.53,0.03761511]
[1747990209996,0.0352567,186.56,186.53,0.03761511]
[1747990209997,5.3608,186.54,186.53,0.03761511]
[1747990210198,0.0352567,186.56,186.48,5.3625]
[1747990210199,5.3952567,186.56,186.48,5.3625]
[1747990210394,3.913,186.58,186.46,101.9]
[1747990211200,5.3616,186.52,186.5,0.039069]
[1747990211397,115.21841992,186.54,186.46,101.9]
[1747990211698,120.57941992,186.54,186.5,5.3617]
[1747990212899,120.57941992,186.54,186.51,5.3616]
[1747990213099,115.21841992,186.54,186.46,101.9]
[1747990213797,120.57921992,186.54,186.46,101.9]
[1747990213991,120.57921992,186.54,186.48,5.3624]
[1747990214189,120.57921992,186.54,186.46,101.9]
[1747990214593,115.21841992,186.54,186.5,5.3618]
[1747990215205,120.57941992,186.54,186.46,101.9]
[1747990215402,115.21841992,186.54,186.46,101.9]
[1747990215794,120.57921992,186.54,186.48,5.3625]
[1747990216195,120.57921992,186.54,186.46,101.9]
[1747990216603,5.3612,186.53,186.46,101.9]
[1747990217202,5.3615,186.52,186.47,5.3627]
[1747990217399,115.21841992,186.54,186.47,5.3627]
[1747990217596,115.21841992,186.54,186.46,101.9]
[1747990218201,5.3613,186.53,186.48,5.3623]
[1747990219305,120.57921992,186.54,186.49,5.3621]
[1747990219602,115.21841992,186.54,186.46,101.9]
[1747990220810,120.57941992,186.54,186.49,5.362]
[1747990221308,5.3612,186.53,186.48,5.3623]
[1747990221507,5.3612,186.53,186.46,101.9]
[1747990221709,115.21841992,186.54,186.46,101.9]
[1747990221907,0.03841992,186.54,186.46,101.9]
[1747990222309,0.03841992,186.54,186.5,5.3616]
[1747990222496,0.03841992,186.54,186.46,101.9]
[1747990222903,0.03841992,186.54,186.53,5.3611]
[1747990223102,0.03841992,186.54,186.53,216.92]
[1747990223401,0.03841992,186.54,186.53,101.88]
[1747990224007,0.03841992,186.54,186.53,107.2411]
[1747990228606,5.3586,186.62,186.58,5.3596]
[1747990229314,5.3582,186.64,186.54,115.02]
[1747990229618,0.03532378,186.61,186.57,0.03685262]
[1747990230220,0.03532378,186.61,186.6,5.3591]
[1747990230413,0.03532378,186.61,186.6,115.02]
[1747990230615,0.03532378,186.61,186.57,0.03685262]
[1747990231110,0.03532378,186.61,186.55,115.0]
[1747990231722,5.39422378,186.61,186.55,115.0]
[1747990232225,0.03532378,186.61,186.55,115.0]
[1747990233025,5.3595,186.59,186.55,120.3603]
[1747990233218,0.03532378,186.61,186.55,115.0]
[1747990235326,0.03532378,186.61,186.6,5.3591]
[1747990236625,0.03532378,186.61,186.55,115.0]
[1747990237525,5.3592,186.6,186.57,5.3597]
[1747990237921,0.03532378,186.61,186.55,115.0]
[1747990238325,0.03532378,186.61,186.51,216.82]
[1747990238527,0.03400431,186.58,186.51,216.82]
[1747990239328,5.39370431,186.58,186.54,5.3606]
[1747990239628,5.39370431,186.58,186.51,216.82]
[1747990239926,0.03400431,186.58,186.51,216.82]
[1747990240327,5.39380431,186.58,186.54,5.3606]
[1747990240621,5.39380431,186.58,186.51,216.82]
[1747990240830,5.3601,186.57,186.51,216.82]
[1747990241129,0.03400431,186.58,186.51,216.82]
[1747990242129,5.3604,186.56,186.53,5.3609]
[1747990242333,0.03400431,186.58,186.51,216.82]
[1747990242629,5.36,186.57,186.54,5.3605]
[1747990242828,5.36,186.57,186.51,216.82]
[1747990243230,5.36,186.57,186.54,5.3606]
[1747990243428,0.03400431,186.58,186.4,10.7294]
[1747990243733,0.03527363,186.53,186.44,3.57310505]
[1747990244419,115.0,186.52,186.44,3.57310505]
[1747990244621,1.8406,186.51,186.44,3.57310505]
[1747990244829,5.362,186.5,186.47,5.3628]
[1747990245425,5.362,186.5,186.46,5.363]
[1747990245633,0.03631943,186.5,186.44,3.57310505]
[1747990246030,5.3628,186.47,186.39,3.57310505]
[1747990246231,0.0399305,186.45,186.39,3.57310505]
[1747990246733,0.0399305,186.45,186.44,5.3637]
[1747990247428,5.3607,186.55,186.43,115.0]
[1747990247734,115.0,186.56,186.43,115.0]
[1747990247932,1.7869,186.6,186.52,5.3613]
[1747990248229,115.0,186.59,186.48,115.0]
[1747990248430,0.03910659,186.55,186.52,0.03750883]
[1747990248832,289.0,186.54,186.4,115.0]
[1747990249040,174.0,186.53,186.4,115.0]
[1747990249235,174.0,186.52,186.4,115.0]
[1747990249431,1.8254,186.52,186.42,3.57310505]
[1747990250034,1.8254,186.52,186.45,0.02060017]
[1747990250035,0.0376162,186.49,186.45,0.02060017]
[1747990250238,115.0376162,186.49,186.45,0.02060017]
[1747990251139,5.3631,186.46,186.45,0.02060017]
[1747990251339,115.0376162,186.49,186.45,0.02060017]
[1747990251632,120.3976162,186.49,186.4,4.76437086]
[1747990251839,101.88,186.48,186.4,4.76437086]
[1747990252336,5.3643,186.42,186.4,4.76437086]
[1747990252538,115.05712486,186.43,186.37,7.14690248]
[1747990252732,115.02,186.42,186.37,2.13050248]
[1747990252928,5.3654,186.38,186.37,2.13050248]
[1747990253132,115.02,186.42,186.28,4.77863019]
[1747990253440,0.03494301,186.37,186.28,4.77863019]
[1747990253740,114.93494301,186.37,186.28,4.77863019]
[1747990254436,114.93494301,186.37,186.24,118.765]
[1747990254639,0.03546983,186.32,186.24,118.765]
[1747990254837,6.983e-05,186.32,186.31,5.3674]
[1747990255042,114.94,186.41,186.3,114.94]
[1747990255341,114.94,186.41,186.39,5.3649]
[1747990255739,114.94,186.41,186.32,63.9483]
[1747990256039,114.94,186.43,186.35,0.03546984]
[1747990256238,0.03972353,186.38,186.35,0.03546984]
[1747990256641,114.94,186.37,186.23,1.9483]
[1747990256939,120.3059,186.37,186.23,1.9483]
[1747990257141,114.94,186.37,186.23,1.9483]
[1747990257441,114.98,186.38,186.23,1.9483]
[1747990257643,0.03431722,186.32,186.23,1.9483]
[1747990258447,114.98,186.38,186.23,1.9483]
[1747990259143,120.3456,186.38,186.23,1.9483]
[1747990259346,174.0,186.42,186.23,1.9483]
[1747990259642,0.0350557,186.34,186.33,5.3668]
[1747990259843,114.98,186.42,186.32,0.03431722]
[1747990260048,114.98,186.42,186.32,1.97811722]
[1747990260341,114.98,186.42,186.37,5.3656]
[1747990260542,114.98,186.42,186.32,3.8592]
[1747990260745,114.98,186.42,186.35,0.03772388]
[1747990260746,0.03488065,186.39,186.35,0.03772388]
[1747990261849,0.03488065,186.39,186.36,5.3659]
[1747990262150,0.03488065,186.39,186.35,0.03772388]
[1747990262336,0.03488065,186.39,186.38,5.3654]
[1747990263547,114.98,186.46,186.36,62.0]
[1747990264239,114.98,186.46,186.36,176.98]
[1747990264548,114.98,186.48,186.39,0.03487582]
[1747990264750,114.98,186.48,186.42,0.03789254]
[1747990265048,5.3639,186.43,186.42,0.03789254]
[1747990265240,114.98,186.43,186.42,0.03789254]
[1747990265435,114.98,186.43,186.36,5.3659]
[1747990265740,114.98,186.43,186.32,3.8592]
[1747990266049,114.98,186.43,186.32,1.9438]
[1747990266545,5.40453065,186.39,186.36,0.04084022]
[1747990266745,0.03913065,186.39,186.36,0.04084022]
[1747990267146,5.40423065,186.39,186.36,5.40674022]
[1747990267446,0.03913065,186.39,186.36,0.04084022]
[1747990268448,5.3657,186.37,186.36,0.04084022]
[1747990271448,5.3657,186.37,186.36,4.022e-05]
[1747990271844,10.7257,186.37,186.36,4.022e-05]
[1747990274859,5.3657,186.37,186.36,4.022e-05]
[1747990276655,120.3857,186.37,186.36,4.022e-05]
[1747990281054,125.7457,186.37,186.36,4.022e-05]
[1747990284455,120.3857,186.37,186.36,4.022e-05]
[1747990287162,125.7457,186.37,186.36,4.022e-05]
[1747990287661,174.0,186.36,186.21,3.8124]
[1747990287864,174.1126,186.36,186.21,3.8124]
[1747990288063,10.7342,186.33,186.21,3.8124]
[1747990288458,0.03573272,186.29,186.25,0.03179011]
[1747990288971,5.3688,186.26,186.25,0.03179011]
[1747990289268,120.3488,186.26,186.25,0.03179011]
[1747990289767,120.3488,186.26,186.25,9.011e-05]
[1747990292357,5.3688,186.26,186.25,9.011e-05]
[1747990293073,0.03573272,186.29,186.25,9.011e-05]
[1747990293372,5.3685,186.28,186.25,9.011e-05]
[1747990293572,0.03573272,186.29,186.25,9.011e-05]
[1747990295168,5.40393272,186.29,186.26,5.3688]
[1747990296270,5.3683,186.28,186.25,9.011e-05]
[1747990296774,5.3683,186.28,186.25,5.36899011]
[1747990297275,0.03573272,186.29,186.25,9.011e-05]
[1747990298375,5.3688,186.26,186.25,9.011e-05]
[1747990311701,115.02,186.28,186.25,9.011e-05]
[1747990311905,112.044,186.28,186.25,9.011e-05]
[1747990312098,109.068,186.28,186.25,9.011e-05]
[1747990312299,0.03573272,186.29,186.28,5.3683]
[1747990312804,0.03573272,186.29,186.25,9.011e-05]
[1747990313500,5.3683,186.28,186.26,5.3688]
[1747990314104,5.3686,186.27,186.25,5.36919011]
[1747990314306,0.03573272,186.29,186.25,9.011e-05]
[1747990315307,5.3688,186.26,186.25,9.011e-05]
[1747990318711,5.3686,186.27,186.25,9.011e-05]
[1747990318907,0.03573272,186.29,186.25,9.011e-05]
[1747990319410,0.03573272,186.29,186.28,5.3683]
[1747990320309,114.9,186.32,186.26,3.8051]
[1747990320911,5.3675,186.31,186.28,5.3681]
[1747990321214,114.9,186.32,186.26,3.8051]
[1747990321404,0.03725388,186.31,186.26,3.8051]
[1747990321901,0.03725388,186.31,186.25,9.011e-05]
[1747990322407,5.3688,186.26,186.25,9.011e-05]
[1747990331219,0.03725388,186.31,186.25,9.011e-05]
[1747990331411,4.97979053,186.34,186.25,9.011e-05]
[1747990331616,4.97979053,186.34,186.26,102.02]
[1747990331819,6.63972071,186.36,186.27,1.9249]
[1747990332116,6.63972071,186.36,186.28,114.92]
[1747990332313,6.63972071,186.36,186.35,5.3662]
[1747990333118,6.63972071,186.36,186.31,1.8979]
[1747990333513,5.3668,186.34,186.31,1.8979]
[1747990333720,0.03617373,186.37,186.31,1.8979]
[1747990334923,5.40187373,186.37,186.34,5.3664]
[1747990335119,0.03617373,186.37,186.31,1.8979]
[1747990335522,0.03617373,186.37,186.31,7.2652]
[1747990336418,5.3665,186.35,186.31,7.2652]
[1747990336722,0.03617373,186.37,186.31,7.2652]
[1747990336927,0.03617373,186.37,186.31,1.8979]
[1747990337422,0.03617373,186.37,186.35,5.3662]
[1747990337923,0.03617373,186.37,186.34,5.40546331]
[1747990338115,0.03617373,186.37,186.34,0.03916331]
[1747990338717,5.3662,186.36,186.34,0.03916331]
[1747990339322,5.3662,186.35,186.34,0.03916331]
[1747990339523,120.2262,186.35,186.34,6.331e-05]
[1747990340320,125.5862,186.35,186.34,6.331e-05]
[1747990342624,10.7346,186.32,186.16,3.61462942]
[1747990342923,10.7346,186.32,186.2,5.3704]
[1747990343124,5.3694,186.25,186.17,1.9037]
[1747990343424,114.88,186.31,186.17,1.9037]